bitfinex/quotes_ETHUSD_20230701
["timestamp","ask_amount","ask_price","bid_price","bid_amount"]
[1688170649927,15.60149184,1935.9,1935.5,5.1665]
[1688170650929,13.01872184,1935.9,1935.6,5.16633]
[1688170651536,15.60149184,1935.9,1935.6,5.16633]
[1688170651935,2.70153319,1935.8,1935.3,1.7274]
[1688170652138,2.70153319,1935.8,1935.3,5.1671]
[1688170652139,12.91555,1935.7,1935.3,5.1671]
[1688170652337,7.85374184,1935.7,1935.3,10.33425]
[1688170652635,7.85374184,1935.7,1935.3,12.91782]
[1688170652636,2.68752184,1935.7,1935.3,12.91782]
[1688170652809,7.85363184,1935.7,1935.3,12.91782]
[1688170653017,0.01401135,1935.8,1935.3,12.91782]
[1688170653211,7.86736319,1935.8,1935.3,12.91782]
[1688170656211,13.03319319,1935.8,1935.3,12.91782]
[1688170656424,7.86736319,1935.8,1935.3,12.91782]
[1688170656783,2.70153319,1935.8,1935.3,12.91782]
[1688170656948,5.16483,1936.2,1935.4,0.931]
[1688170657111,1.034106,1936.3,1935.6,12.9156]
[1688170657307,7.85207184,1936.3,1935.6,12.9156]
[1688170657938,7.85207184,1936.3,1935.6,15.095]
[1688170658135,5.29643093,1936.4,1935.6,15.095]
[1688170658136,0.13207093,1936.4,1935.6,15.095]
[1688170658339,2.81959277,1936.4,1936.1,0.934]
[1688170658528,2.81959277,1936.4,1936.2,5.16475]
[1688170658722,0.13207093,1936.4,1936.2,5.16475]
[1688170659141,10.32814,1936.5,1936.2,10.3295]
[1688170660435,11.65977694,1936.5,1936.2,5.16475]
[1688170660815,5.16454,1936.3,1936.0,12.51415]
[1688170661015,13.01660184,1936.3,1936.0,2.1838]
[1688170661210,15.59884184,1936.3,1935.9,6.90892]
[1688170661443,17.15872602,1936.3,1935.9,12.07447]
[1688170661645,13.01660184,1936.3,1935.9,12.91364]
[1688170662047,7.85206184,1936.3,1935.9,12.91364]
[1688170662214,2.68752184,1936.3,1935.9,12.91364]
[1688170662421,6.50973829,1936.5,1935.9,12.91364]
[1688170662624,7.85179184,1936.4,1935.9,12.91364]
[1688170663018,13.01606184,1936.4,1935.9,12.91364]
[1688170663758,0.01401135,1936.3,1935.8,0.0031567]
[1688170663953,10.32976,1936.2,1935.8,5.1687667]
[1688170664760,12.91213,1936.2,1935.8,5.1687667]
[1688170665160,14.23950965,1936.2,1935.8,0.0031567]
[1688170665320,14.23950965,1936.2,1935.5,2.2206]
[1688170665321,12.91375,1936.0,1935.5,2.2206]
[1688170665524,15.60127184,1936.0,1935.4,12.03876]
[1688170665762,17.41965602,1936.0,1935.4,6.87197]
[1688170666326,17.41965602,1936.0,1935.3,4.80417]
[1688170666327,2.68752184,1935.9,1935.3,2.2206]
[1688170666527,12.91505,1935.8,1935.3,7.3875]
[1688170666728,15.60257184,1935.8,1935.3,2.2206]
[1688170667467,15.60257184,1935.8,1935.3,12.55485]
[1688170667635,17.55341416,1935.8,1935.3,12.55485]
[1688170667832,17.55341416,1935.8,1935.3,15.13842]
[1688170668052,17.55341416,1935.8,1935.3,12.55485]
[1688170668364,12.91622,1935.6,1935.2,0.00315768]
[1688170668526,15.60374184,1935.6,1935.2,0.00315768]
[1688170668730,17.16551716,1935.6,1935.2,0.00315768]
[1688170670133,17.16551716,1935.6,1935.2,10.33786768]
[1688170670332,15.60374184,1935.6,1935.2,10.33786768]
[1688170671856,13.02050184,1935.6,1935.2,10.33786768]
[1688170672223,15.60367184,1935.6,1935.2,10.33786768]
[1688170673058,5.18025135,1935.7,1935.2,12.92157768]
[1688170673245,10.34658135,1935.7,1935.2,12.92157768]
[1688170673874,10.34651135,1935.7,1935.2,12.92157768]
[1688170676686,5.16624,1935.7,1935.2,12.92157768]
[1688170677959,5.57605285,1935.7,1935.2,12.92157768]
[1688170679590,10.74231285,1935.7,1935.2,12.92157768]
[1688170680289,2.85263618,1936.0,1935.2,12.92157768]
[1688170680589,7.85315184,1935.9,1935.2,16.04617768]
[1688170680892,13.01886184,1935.9,1935.2,16.04617768]
[1688170682354,0.41933087,1936.0,1935.2,14.73717768]
[1688170682558,8.16462,1936.3,1935.2,17.69243923]
[1688170682758,2.68752184,1936.2,1935.2,17.69243923]
[1688170683193,7.85231184,1936.2,1935.2,17.69243923]
[1688170683494,10.32958,1936.2,1935.5,12.91607]
[1688170683659,10.32958,1936.2,1935.7,10.33174]
[1688170684056,10.32958,1936.2,1935.4,6.47176]
[1688170684057,2.68752184,1936.1,1935.4,6.47176]
[1688170684302,0.26875218,1936.0,1935.4,2.1843]
[1688170684595,0.26875218,1936.0,1935.4,12.51799]
[1688170684596,12.91432,1935.9,1935.4,12.51799]
[1688170685195,12.91432,1935.9,1935.4,15.10143]
[1688170685593,12.91432,1935.9,1935.4,12.51799]
[1688170687566,2.68752184,1935.8,1935.4,2.1843]
[1688170687767,10.33227,1935.7,1935.3,12.12967752]
[1688170687968,10.33227,1935.7,1935.4,5.1668]
[1688170687969,12.91531,1935.7,1935.4,5.1668]
[1688170688396,12.91531,1935.7,1935.3,10.33721752]
[1688170688599,12.91531,1935.7,1935.3,5.17018752]
[1688170688808,10.33227,1935.7,1935.3,10.33733752]
[1688170688980,14.39820023,1935.7,1935.3,0.00315752]
[1688170689168,14.39820023,1935.7,1935.3,10.33729752]
[1688170689369,9.23206023,1935.7,1935.3,10.33729752]
[1688170689699,14.39820023,1935.7,1935.3,12.92086752]
[1688170689883,9.23206023,1935.7,1935.3,12.92086752]
[1688170690394,2.68752184,1935.7,1935.3,12.92086752]
[1688170691181,7.85361184,1935.7,1935.3,12.92086752]
[1688170691366,2.68752184,1935.7,1935.3,12.92086752]
[1688170691566,7.85362184,1935.7,1935.3,12.92086752]
[1688170695118,2.68752184,1935.6,1935.0,5.0]
[1688170695307,10.33358,1935.5,1935.1,5.16758]
[1688170695502,13.02110184,1935.5,1935.0,10.1678]
[1688170695710,2.68752184,1935.4,1935.0,5.0]
[1688170696009,2.68752184,1935.4,1935.0,17.91984]
[1688170696376,7.85443184,1935.4,1935.0,17.91984]
[1688170696716,16.90689802,1935.4,1935.0,5.0]
[1688170697388,16.90689802,1935.4,1935.0,10.16791]
[1688170697583,16.90689802,1935.4,1935.0,15.33586]
[1688170698191,2.68752184,1935.4,1935.0,17.91983]
[1688170698395,5.16653,1935.6,1935.0,17.91983]
[1688170698589,2.68752184,1935.5,1935.0,17.91983]
[1688170698803,5.16665,1935.5,1935.0,17.92298801]
[1688170699184,5.16671,1935.5,1935.0,17.92298801]
[1688170700402,5.16651,1935.6,1935.0,17.92298801]
[1688170700610,5.16623,1935.7,1935.0,19.23198801]
[1688170700816,10.33242,1935.7,1935.0,19.23198801]
[1688170701002,12.92947135,1935.7,1935.0,17.92298801]
[1688170701197,14.26334065,1935.7,1935.0,17.92298801]
[1688170707797,10.34643135,1935.7,1935.0,17.92298801]
[1688170709136,15.61699319,1935.7,1935.0,17.92298801]
[1688170709429,16.92599319,1935.7,1935.0,17.92298801]
[1688170712106,15.61699319,1935.7,1935.0,17.92298801]
[1688170715444,2.68752184,1935.6,1935.0,17.92298801]
[1688170715615,10.60241218,1935.5,1935.0,17.92298801]
[1688170715816,13.2865064,1935.5,1935.0,17.92298801]
[1688170717170,12.91802,1935.3,1935.0,5.0]
[1688170717314,15.60554184,1935.3,1935.0,5.0]
[1688170717512,2.68752184,1935.2,1935.0,5.0]
[1688170717713,5.16769,1935.1,1935.0,5.0]
[1688170718651,15.60674184,1935.1,1935.0,5.0]
[1688170718847,13.02290184,1935.1,1935.0,5.0]
[1688170719051,15.60674184,1935.1,1935.0,5.0]
[1688170719423,16.90674184,1935.1,1935.0,5.0]
[1688170719641,19.01185144,1935.1,1935.0,5.0]
[1688170720918,18.64585144,1935.1,1935.0,5.0]
[1688170722039,5.16769,1935.1,1935.0,5.0]
[1688170722319,1.56055418,1935.2,1935.0,5.0]
[1688170722320,5.16754,1935.2,1935.0,10.16795]
[1688170722752,10.33512,1935.2,1935.0,5.0]
[1688170723424,10.75089469,1935.2,1935.0,5.0]
[1688170727768,5.16754,1935.2,1935.0,5.0]
[1688170728125,10.33512,1935.2,1935.0,5.0]
[1688170728933,12.91883,1935.2,1935.0,5.0]
[1688170729134,14.55294256,1935.2,1935.0,5.0]
[1688170730860,3.62152184,1935.1,1935.0,5.0]
[1688170731156,16.54074184,1935.1,1935.0,5.0]
[1688170731358,19.54074184,1935.1,1935.0,5.0]
[1688170731893,20.02074184,1935.1,1935.0,5.0]
[1688170732057,22.44459828,1935.1,1935.0,5.0]
[1688170735963,24.44459828,1935.1,1935.0,5.0]
[1688170740165,22.44459828,1935.1,1935.0,5.0]
[1688170740463,24.44459828,1935.1,1935.0,5.0]
[1688170741763,21.86075828,1935.1,1935.0,5.0]
[1688170742154,24.44459828,1935.1,1935.0,5.0]
[1688170742565,21.38075828,1935.1,1935.0,5.0]
[1688170742738,19.38075828,1935.1,1935.0,5.0]
[1688170743067,21.38075828,1935.1,1935.0,5.0]
[1688170743290,21.79676851,1935.1,1935.0,5.0]
[1688170743447,24.38060851,1935.1,1935.0,5.0]
[1688170745064,24.86060851,1935.1,1935.0,5.0]
[1688170752281,24.38060851,1935.1,1935.0,5.0]
[1688170752575,21.95675207,1935.1,1935.0,5.0]
[1688170754876,22.43675207,1935.1,1935.0,5.0]
[1688170756068,21.50275207,1935.1,1935.0,5.0]
[1688170760285,19.50275207,1935.1,1935.0,5.0]
[1688170763450,3.10353207,1935.1,1935.0,5.0]
[1688170763657,0.5,1935.4,1935.0,15.3359]
[1688170763658,5.16705,1935.4,1935.0,15.3359]
[1688170763884,2.68752184,1935.4,1935.0,17.91987]
[1688170764086,7.85447184,1935.4,1935.0,17.91987]
[1688170764303,2.68752184,1935.4,1935.1,0.00315785]
[1688170764451,7.85441184,1935.4,1935.2,6.10042]
[1688170764661,13.42488924,1935.4,1935.1,11.27325785]
[1688170764886,13.42488924,1935.4,1935.1,6.10570785]
[1688170766400,13.42488924,1935.4,1935.1,11.27339785]
[1688170770197,2.68752184,1935.3,1935.0,7.0867]
[1688170770500,10.33484,1935.2,1935.0,7.0867]
[1688170770679,2.68752184,1935.1,1935.0,5.0]
[1688170773660,2.68752184,1935.1,1935.0,10.16795]
[1688170774103,2.68752184,1935.1,1935.0,5.0]
[1688170774964,2.68752184,1935.1,1935.0,10.16795]
[1688170778470,0.41389549,1935.2,1935.0,16.2659]
[1688170778701,0.01401135,1935.5,1935.1,0.935]
[1688170778869,2.68752184,1935.4,1935.2,12.91846]
[1688170779370,2.68752184,1935.4,1935.2,10.33475]
[1688170779674,4.23291207,1935.8,1935.2,12.91846]
[1688170779675,0.12873137,1935.8,1935.2,12.91846]
[1688170779877,0.12873137,1935.8,1935.4,15.50024]
[1688170780574,5.16515,1936.1,1935.7,0.935]
[1688170780775,2.68752184,1936.0,1935.8,10.33152]
[1688170781777,2.68752184,1936.0,1935.8,11.26752]
[1688170781974,3.0,1936.1,1935.8,11.26752]
[1688170782191,3.0,1936.0,1935.8,11.26752]
[1688170782386,3.0,1936.0,1935.8,10.33152]
[1688170782887,7.85254184,1936.1,1935.8,12.91443]
[1688170785267,5.58750231,1936.2,1935.8,13.84743]
[1688170785268,0.42259231,1936.2,1935.8,13.84743]
[1688170785473,0.42259231,1936.2,1936.1,0.935]
[1688170785708,0.12919923,1936.6,1936.1,13.84755]
[1688170785874,2.68752184,1936.5,1936.1,12.91255]
[1688170786274,2.68752184,1936.5,1936.0,11.26855638]
[1688170786275,15.59745184,1936.5,1936.0,11.26855638]
[1688170786474,17.17011695,1936.5,1936.0,11.26855638]
[1688170786918,3.0,1936.4,1936.0,11.26855638]
[1688170787214,10.85174184,1936.4,1936.0,13.85119638]
[1688170787711,10.85174184,1936.4,1936.2,0.936]
[1688170787907,10.85174184,1936.4,1936.2,5.16461]
[1688170787908,10.80174184,1936.4,1936.2,5.16461]
[1688170788075,15.96596184,1936.4,1936.2,5.16461]
[1688170788296,10.80174184,1936.4,1936.2,5.16461]
[1688170789539,0.12919923,1936.6,1936.2,13.84673]
[1688170789835,2.68752184,1936.5,1936.4,5.16422]
[1688170790005,7.85151184,1936.5,1936.4,5.16422]
[1688170790208,7.85151184,1936.5,1936.3,11.26186]
[1688170790406,7.85151184,1936.5,1936.3,10.32886]
[1688170791335,7.85151184,1936.5,1936.3,5.16443]
[1688170792633,9.16595795,1936.5,1936.3,5.16443]
[1688170792836,16.91191795,1936.5,1935.9,9.03124]
[1688170793009,16.91191795,1936.5,1936.0,5.16519]
[1688170794954,16.91191795,1936.5,1935.9,9.03124]
[1688170795115,1.6911918,1936.4,1935.9,9.03124]
[1688170795443,13.01676184,1936.3,1935.9,7.34224]
[1688170796735,13.01676184,1936.3,1935.9,12.50779]
[1688170797244,15.59900184,1936.3,1935.9,2.1768]
[1688170799145,15.59900184,1936.3,1935.9,12.50788]
[1688170799346,14.8389812,1936.3,1935.9,12.50788]
[1688170799849,17.4212212,1936.3,1935.9,12.50788]
[1688170800441,17.4212212,1936.3,1935.9,7.34233]
[1688170801612,17.4212212,1936.3,1935.9,2.1768]
[1688170801926,18.3572212,1936.3,1935.5,5.16645]
[1688170802135,5.76572212,1936.2,1935.7,2.2373]
[1688170802455,13.01782184,1936.1,1935.7,7.40336]
[1688170802744,13.01782184,1936.1,1935.7,12.56944]
[1688170803525,15.60033184,1936.1,1935.7,12.56944]
[1688170803732,17.73693724,1936.1,1935.7,7.40336]
[1688170804470,17.73693724,1936.1,1935.7,2.2373]
[1688170804663,17.73693724,1936.1,1935.7,7.40335]
[1688170804970,17.73693724,1936.1,1935.7,2.2373]
[1688170805244,17.73693724,1936.1,1935.7,7.40338]
[1688170805864,5.16555,1935.9,1935.7,2.2373]
[1688170806019,7.85307184,1935.9,1935.5,6.95052719]
[1688170806214,7.85307184,1935.9,1935.5,12.11714719]
[1688170807252,13.01862184,1935.9,1935.5,12.11714719]
[1688170807854,7.85307184,1935.9,1935.5,12.11714719]
[1688170808033,7.85307184,1935.9,1935.5,14.70045719]
[1688170808233,2.68752184,1935.9,1935.5,14.70045719]
[1688170809061,2.68752184,1935.9,1935.5,15.63045719]
[1688170815248,5.58032383,1936.1,1935.5,14.70045719]
[1688170815249,0.41522383,1936.1,1935.5,14.70045719]
[1688170815447,0.41522383,1936.1,1935.8,0.936]
[1688170815673,0.12919923,1936.6,1935.9,15.49664]
[1688170815871,2.68752184,1936.5,1935.9,15.49664]
[1688170816266,2.68752184,1936.5,1936.0,0.936]
[1688170816452,2.68752184,1936.5,1936.1,12.9122]
[1688170816453,7.85153184,1936.5,1936.1,12.9122]
[1688170816783,7.85152184,1936.5,1936.1,12.9122]
[1688170817785,2.68752184,1936.5,1936.2,0.936]
[1688170818077,2.68752184,1936.5,1936.3,10.32896]
[1688170818578,4.00195995,1936.5,1936.3,10.27896]
[1688170818801,9.16590995,1936.5,1936.3,5.11448]
[1688170820955,5.29298923,1936.6,1936.3,10.27896]
[1688170820956,0.12919923,1936.6,1936.3,10.27896]
[1688170821280,7.98041107,1936.6,1936.3,10.27896]
[1688170822352,7.98041107,1936.6,1936.3,5.11448]
[1688170822867,13.14410107,1936.6,1936.3,5.11448]
[1688170825290,13.14410107,1936.6,1936.1,2.1075]
[1688170825291,5.16422,1936.4,1936.1,2.1075]
[1688170825453,0.516422,1936.3,1936.1,2.1075]
[1688170825654,0.516422,1936.3,1936.1,7.27247]
[1688170825871,0.516422,1936.3,1936.1,12.43749]
[1688170826089,2.68752184,1936.4,1936.1,5.16497]
[1688170826300,2.68752184,1936.4,1936.1,10.32999]
[1688170826869,2.68752184,1936.4,1936.1,5.16497]
[1688170827169,13.01608184,1936.4,1936.0,12.1338]
[1688170827370,13.01608184,1936.4,1936.0,6.96867]
[1688170827564,14.57588902,1936.4,1936.0,6.96867]
[1688170829002,2.68752184,1936.3,1935.9,7.2775]
[1688170829202,10.3296,1936.2,1935.8,5.1689467]
[1688170829535,15.59949184,1936.2,1935.8,5.1689467]
[1688170829701,17.15944102,1936.2,1935.8,5.1689467]
[1688170829906,14.57707102,1936.2,1935.8,5.1689467]
[1688170830101,14.57707102,1936.2,1935.8,0.0031567]
[1688170830607,14.57707102,1936.2,1935.8,5.1689167]
[1688170831219,9.41227102,1936.2,1935.8,10.3347367]
[1688170831535,9.41227102,1936.2,1935.8,12.9176467]
[1688170831818,2.68752184,1936.2,1935.8,12.9176467]
[1688170832044,7.85228184,1936.2,1935.8,12.9176467]
[1688170832325,13.01704184,1936.2,1935.8,12.9176467]
[1688170832607,13.01704184,1936.2,1935.8,10.3347367]
[1688170834605,13.01704184,1936.2,1935.8,12.9176467]
[1688170835011,13.97008663,1936.2,1935.8,12.9176467]
[1688170837389,13.97008663,1936.2,1935.8,10.3347367]
[1688170837592,16.55245663,1936.2,1935.7,4.0344]
[1688170837792,16.55245663,1936.2,1935.7,2.2475]
[1688170837793,2.68752184,1936.1,1935.7,2.2475]
[1688170838007,2.68752184,1936.1,1935.5,6.10248]
[1688170838008,10.59938218,1936.0,1935.5,6.10248]
[1688170838207,13.28690402,1936.0,1935.6,5.16633]
[1688170838521,13.28690402,1936.0,1935.6,10.33268]
[1688170840420,8.12156402,1936.0,1935.6,11.26268]
[1688170840791,8.12156402,1936.0,1935.6,13.84585]
[1688170841498,13.28685402,1936.0,1935.6,11.26268]
[1688170842393,8.12156402,1936.0,1935.6,13.84585]
[1688170843327,13.28685402,1936.0,1935.6,12.91585]
[1688170843494,8.12156402,1936.0,1935.6,12.91585]
[1688170843831,8.12155402,1936.0,1935.6,12.91585]
[1688170844001,13.28683402,1936.0,1935.6,10.33268]
[1688170844192,8.12155402,1936.0,1935.6,5.16633]
[1688170844506,13.28683402,1936.0,1935.6,5.16633]
[1688170844747,13.28683402,1936.0,1935.6,10.33268]
[1688170845259,8.12155402,1936.0,1935.6,10.33268]
[1688170845560,13.28683402,1936.0,1935.6,10.33268]
[1688170846240,8.12155402,1936.0,1935.6,10.33268]
[1688170846630,13.28683402,1936.0,1935.6,10.33268]
[1688170847031,8.12155402,1936.0,1935.6,10.33268]
[1688170847765,2.95627402,1936.0,1935.6,13.85085]
[1688170847969,2.68752184,1936.0,1935.6,13.85085]
[1688170849484,15.60094184,1936.0,1935.6,5.16633]
[1688170850048,15.60094184,1936.0,1935.6,10.33268]
[1688170850348,2.68752184,1935.9,1935.6,10.33268]
[1688170850548,13.01893184,1935.9,1935.6,10.33268]
[1688170850748,14.57908902,1935.9,1935.6,10.33268]
[1688170851480,9.41326902,1935.9,1935.6,10.33268]
[1688170854358,17.16185902,1935.9,1935.5,7.2986]
[1688170854681,17.16185902,1935.9,1935.5,7.29881]
[1688170854886,17.16185902,1935.9,1935.5,12.46543]
[1688170854887,14.57908902,1935.9,1935.5,12.46543]
[1688170855191,1.7161859,1935.8,1935.5,12.46543]
[1688170855392,1.7161859,1935.8,1935.5,2.1322]
[1688170855393,6.8821359,1935.8,1935.5,2.1322]
[1688170855703,12.0480859,1935.8,1935.5,12.46541]
[1688170855884,12.0479559,1935.8,1935.5,10.33324]
[1688170856057,6.8820059,1935.8,1935.5,10.33324]
[1688170856389,6.8820059,1935.8,1935.5,5.16662]
[1688170858352,12.0479559,1935.8,1935.5,5.16662]
[1688170863180,1.20479559,1935.7,1935.4,7.40294]
[1688170863408,5.16635,1935.6,1935.4,7.40294]
[1688170864131,5.16635,1935.6,1935.3,10.33721752]
[1688170867519,13.02022184,1935.6,1935.3,5.16702]
[1688170867691,13.02022184,1935.6,1935.2,9.02331]
[1688170867692,1.30202218,1935.5,1935.2,7.27761]
[1688170867896,6.46883218,1935.5,1935.2,12.44488]
[1688170868810,11.63564218,1935.5,1935.2,12.44488]
[1688170869008,11.63564218,1935.5,1935.2,2.1103]
[1688170869506,11.63564218,1935.5,1935.2,7.27759]
[1688170869684,1.16356422,1935.4,1935.2,7.27759]
[1688170870114,6.33052422,1935.4,1935.2,5.16731]
[1688170870297,1.30202218,1935.5,1935.2,10.33473]
[1688170870494,2.68752184,1935.6,1935.2,13.85044]
[1688170870686,6.38500694,1935.7,1935.2,13.85044]
[1688170870895,5.16639,1935.6,1935.2,11.26673]
[1688170871098,5.16639,1935.6,1935.2,5.16731]
[1688170871099,15.60347184,1935.6,1935.2,5.16731]
[1688170871311,1.56034718,1935.5,1935.2,5.16731]
[1688170871510,6.72712718,1935.5,1935.2,5.16731]
[1688170872614,9.41464902,1935.5,1935.2,5.16731]
[1688170873307,14.58142902,1935.5,1935.2,5.16731]
[1688170873711,9.41464902,1935.5,1935.2,10.33473]
[1688170874733,13.66713602,1935.5,1935.2,10.33473]
[1688170875335,8.50035602,1935.5,1935.2,10.33473]
[1688170875648,3.48549362,1935.4,1935.0,5.0]
[1688170875932,12.91799,1935.3,1935.0,5.0]
[1688170876153,5.16769,1935.1,1935.0,5.0]
[1688170876448,13.02290184,1935.1,1935.0,5.0]
[1688170877094,7.85521184,1935.1,1935.0,5.0]
[1688170877400,9.41586402,1935.1,1935.0,5.0]
[1688170878532,0.929,1935.3,1935.0,5.0]
[1688170878748,7.85483184,1935.3,1935.0,10.16795]
[1688170878903,5.16702,1935.4,1935.0,15.3359]
[1688170879245,13.02165184,1935.4,1935.0,15.3359]
[1688170881103,15.60509184,1935.4,1935.0,15.3359]
[1688170881299,17.50842147,1935.4,1935.0,15.3359]
[1688170881547,17.50842147,1935.4,1935.0,10.16795]
[1688170881799,5.16702,1935.4,1935.0,15.3359]
[1688170882101,6.01151445,1935.5,1935.1,0.93]
[1688170882102,5.5808431,1935.5,1935.1,0.93]
[1688170882305,10.3333,1935.5,1935.2,10.33474]
[1688170883360,2.58318,1935.6,1935.2,10.33474]
[1688170883361,5.58406727,1935.6,1935.2,13.85145]
[1688170883648,8.27158911,1935.6,1935.2,12.91845]
[1688170884006,4.252487,1935.4,1935.2,12.91845]
[1688170884406,9.419407,1935.4,1935.1,6.9033]
[1688170884602,9.419407,1935.4,1935.2,5.16737]
[1688170884922,9.419407,1935.4,1935.1,5.1676]
[1688170885131,9.419407,1935.4,1935.1,10.33519]
[1688170885132,14.586327,1935.4,1935.1,10.33519]
[1688170885435,2.68752184,1935.3,1935.0,5.0]
[1688170885610,5.43628218,1935.2,1935.0,5.0]
[1688170885800,13.29133402,1935.2,1935.0,5.0]
[1688170886052,13.29133402,1935.2,1935.0,10.1679]
[1688170886209,13.29133402,1935.2,1935.0,5.0]
[1688170886425,2.68752184,1935.1,1935.0,5.0]
[1688170886609,14.61040624,1935.1,1935.0,5.0]
[1688170887927,9.44271624,1935.1,1935.0,5.0]
[1688170888734,9.43348835,1935.4,1935.0,15.3359]
[1688170888935,2.68752184,1935.3,1935.0,17.91987]
[1688170889125,5.16717,1935.3,1935.0,15.3359]
[1688170890436,10.33434,1935.3,1935.0,15.3359]
[1688170892010,5.16717,1935.3,1935.0,15.3359]
[1688170892236,4.6665641,1935.4,1935.0,17.91987]
[1688170892438,4.252487,1935.4,1935.1,0.00315785]
[1688170892637,4.252487,1935.4,1935.2,12.91855]
[1688170893015,4.252487,1935.4,1935.3,0.933]
[1688170893343,4.252487,1935.4,1935.3,10.33745752]
[1688170894363,4.252487,1935.4,1935.3,11.27345752]
[1688170894559,4.252487,1935.4,1935.3,13.85702752]
[1688170904872,4.252487,1935.4,1935.3,16.54454936]
[1688170905074,4.252487,1935.4,1935.3,17.02454936]
[1688170905873,4.252487,1935.4,1935.3,23.39654936]
[1688170906071,9.82756,1936.4,1935.3,23.39654936]
[1688170906072,4.6633,1936.4,1935.3,23.39654936]
[1688170906278,12.51508184,1936.4,1936.0,12.91288]
[1688170906482,10.85178184,1936.4,1936.0,12.91288]
[1688170907068,11.25984992,1936.4,1936.0,12.91288]
[1688170907263,6.09558992,1936.4,1936.0,12.91288]
[1688170907479,0.40806808,1936.4,1936.0,13.84488]
[1688170907867,12.06088923,1936.6,1936.0,13.84488]
[1688170908071,7.85155184,1936.5,1936.0,13.84803638]
[1688170908784,7.85155184,1936.5,1936.0,15.55843638]
[1688170909002,13.01558184,1936.5,1936.0,15.55843638]
[1688170909284,13.01550184,1936.5,1936.0,15.55843638]
[1688170910790,7.85147184,1936.5,1936.0,15.55843638]
[1688170910987,9.75808196,1936.5,1936.0,15.55843638]
[1688170912563,4.59413196,1936.5,1936.0,15.55843638]
[1688170913460,4.59413196,1936.5,1936.0,14.62643638]
[1688170913659,9.75813196,1936.5,1936.0,14.62643638]
[1688170913860,9.75813196,1936.5,1936.0,12.91603638]
[1688170913861,10.69013196,1936.5,1936.0,12.91603638]
[1688170915500,15.85413196,1936.5,1936.0,12.91603638]
[1688170916193,1.5854132,1936.4,1936.0,12.91603638]
[1688170916395,6.7498532,1936.4,1936.0,12.91603638]
[1688170916609,11.9142932,1936.4,1936.0,12.91603638]
[1688170917496,10.32888,1936.4,1936.0,12.91603638]
[1688170924007,13.01640184,1936.4,1936.0,5.16830638]
[1688170924170,3.62152184,1936.3,1935.8,5.16572]
[1688170924496,11.26468,1936.2,1935.8,5.16572]
[1688170924869,11.26468,1936.2,1935.8,10.33154]
[1688170926313,15.50049418,1936.2,1935.6,32.2785]
[1688170926486,15.50049418,1936.2,1935.6,5.16635]
[1688170926487,2.68752184,1936.1,1935.6,5.16635]
[1688170926679,10.33084,1936.0,1935.6,5.16635]
[1688170926870,13.01836184,1936.0,1935.6,5.16635]
[1688170927072,15.60100184,1936.0,1935.6,5.16635]
[1688170927298,18.09710202,1936.0,1935.6,5.16635]
[1688170928104,15.51446202,1936.0,1935.6,10.3327]
[1688170928301,17.16110202,1936.0,1935.6,10.3327]
[1688170928718,14.57846202,1936.0,1935.6,10.3327]
[1688170928915,14.57846202,1936.0,1935.6,12.91587]
[1688170929717,5.07436804,1935.9,1935.4,2.2485]
[1688170929870,11.26585,1935.8,1935.5,5.16651]
[1688170930270,11.26585,1935.8,1935.4,12.58201]
[1688170930484,11.26585,1935.8,1935.4,12.58213]
[1688170931282,11.26585,1935.8,1935.4,7.41524]
[1688170932315,18.33568364,1935.8,1935.3,5.167]
[1688170932501,0.936,1935.7,1935.3,5.167]
[1688170932688,5.16641,1935.6,1935.3,5.167]
[1688170933415,10.33282,1935.6,1935.2,0.00315768]
[1688170933614,10.33282,1935.6,1935.2,5.17056768]
[1688170934617,5.16641,1935.6,1935.2,12.92169768]
[1688170940110,6.10223,1935.7,1935.2,12.92169768]
[1688170940306,7.85375184,1935.7,1935.2,12.92169768]
[1688170940508,2.68752184,1935.7,1935.2,12.92169768]
[1688170941233,7.85361184,1935.7,1935.2,12.92169768]
[1688170942226,1.34455658,1935.8,1935.2,12.92169768]
[1688170942430,0.40855658,1935.8,1935.2,12.92169768]
[1688170942626,1.9279,1936.1,1935.2,12.92169768]
[1688170942798,5.16515,1936.1,1935.5,15.49934]
[1688170942991,5.16463,1936.3,1935.5,18.18686184]
[1688170943230,0.41033597,1936.2,1935.7,0.936]
[1688170943526,10.32872,1936.4,1935.9,12.9134]
[1688170943726,5.16434,1936.4,1935.9,12.9134]
[1688170945310,5.57112353,1936.4,1935.9,12.9134]
[1688170946635,10.73554353,1936.4,1935.9,12.9134]
[1688170947203,5.57112353,1936.4,1935.9,12.9134]
[1688170948430,5.57112353,1936.4,1936.1,0.936]
[1688170948431,0.40678353,1936.4,1936.1,0.936]
[1688170948601,0.40678353,1936.4,1936.2,12.91187]
[1688170948928,0.12919923,1936.6,1936.2,12.91187]
[1688170950399,5.29288923,1936.6,1936.2,12.91187]
[1688170950839,0.12919923,1936.6,1936.2,12.91187]
[1688170951129,5.29294923,1936.6,1936.2,12.91187]
[1688170952405,0.12919923,1936.6,1936.2,12.91187]
[1688170953400,0.12919923,1936.6,1936.2,13.84787]
[1688170957512,0.12919923,1936.6,1936.2,13.85102605]
[1688170959103,0.12919923,1936.6,1936.3,0.936]
[1688170959302,0.42250369,1936.7,1936.2,12.91502605]
[1688170959303,0.42250369,1936.7,1936.5,12.90987]
[1688170959502,7.04769,1937.1,1936.5,13.84187]
[1688170959702,9.86728844,1937.1,1936.5,15.56847]
[1688170960334,2.0171766,1937.1,1936.6,0.9381554]
[1688170960658,0.1320766,1937.1,1936.7,12.9082]
[1688170962611,0.1320766,1937.1,1936.7,13.8442]
[1688170963323,0.1320766,1937.1,1936.8,0.935]
[1688170963529,0.1320766,1937.1,1936.9,12.9072]
[1688170965926,0.1320766,1937.1,1936.9,13.84035491]
[1688170966245,3.15944584,1937.5,1936.9,13.84035491]
[1688170966418,0.51084063,1937.5,1937.0,0.933]
[1688170966624,0.51084063,1937.5,1937.1,12.90555]
[1688170966962,0.51084063,1937.5,1937.1,12.90870458]
[1688170967369,0.51084063,1937.5,1937.3,15.48546]
[1688170967875,0.22602231,1937.5,1937.3,15.48546]
[1688170968033,0.1,1937.5,1937.3,15.48546]